{"text_format":"1","workbook":"xlsx","n_sheets":3,"sheets":["паспорт","додаток","variablesList"],"not_rendered":{"charts":0,"images":0,"macros":1,"external_links":0,"defined_names":3,"comments":0,"pivot_tables":0},"unopened":[],"bounds":{"document_bytes":16777216,"sheet_cells":100000,"rows_first":2000,"rows_last":500,"rows_between":2000,"halvings":0,"cell_chars":16384,"cell_head_chars":4096},"cells_cut":0,"cells_raw":0,"read":"whole","date_system":"1900"}

{"sheet":"паспорт","index":0,"n_rows":52,"n_cols":31,"rows_kept":52,"cut":false,"hidden":false,"merged":[[6,0,9,0],[49,1,49,26],[8,11,9,11],[41,18,42,18],[41,19,42,19],[41,14,42,14],[42,7,42,13],[41,15,42,15],[41,16,42,16],[41,17,42,17],[8,9,9,9],[8,10,9,10],[6,25,9,25],[45,1,45,26],[41,0,41,13],[8,3,9,3],[47,1,47,26],[43,20,43,27],[42,20,42,27],[41,20,41,27],[6,27,9,27],[8,8,9,8],[6,26,9,26],[6,24,9,24],[6,23,9,23],[8,1,9,1],[8,2,9,2],[8,5,9,5],[8,6,9,6],[8,4,9,4],[0,6,0,24],[1,6,1,24],[0,25,0,27],[4,23,4,24],[8,12,9,12],[4,21,4,22],[8,14,8,16],[8,17,8,19],[8,20,8,22],[7,14,7,22],[2,6,2,24],[4,26,4,27],[8,7,9,7],[6,1,7,12],[7,13,9,13],[6,13,6,22]]}
["ПАТ \"УКРТРАНСГАЗ\"",null,null,null,null,null,"ПАСПОРТ ФІЗИКО-ХІМІЧНИХ ПОКАЗНИКІВ ПРИРОДНОГО ГАЗУ  № 215"]
["Філія \"УМГ \"ЛЬВІВТРАНСГАЗ\"",null,null,null,null,null,"переданого Тернопільським ЛВУМГ та прийнятого  ПАТ \"Івано-Франківськгаз\",  ПАТ\"Тернопільгаз\", ПП\"ОККО-РІТЕЙЛ\""]
["Рогатинський п/м Тернопільське ЛВУМГ",null,null,null,null,null,"Маршрут № 215"]
["Вимірювальна хіміко-аналітична лабораторія"]
["Свідоцтво № РЛ 156/15 чинно до 14.12.2020 р.",null,null,null,null,null,null,null,null,null,"по газопроводу  \"КЗУ-2\"",null,null,null,null,null,null,null,null,null,null,"за період з",null,"2017-04-01",null," по","2017-04-30"]
[]
["Число місяця","Компонентний склад, % мол. ",null,null,null,null,null,null,null,null,null,null,null,"Фізико-хімічні показники газу обчислені на основі компонентного складу, 101,325 кПа",null,null,null,null,null,null,null,null,null,"Температура точки роси вологи (Р = 3.92 МПа), ºС","Температура точки роси вуглеводнів, ºС","Вміст сірководню, г/м3","Вміст меркаптанової сірки, г/м3","Вміст механічних домішок, г/м3"]
[null,null,null,null,null,null,null,null,null,null,null,null,null,"Густина абсолютна, кг/м3,при 20 ºС, ","Температура вимірювання/згоряння при  20/25°С"]
[null,"метан, С1","етан, С2","пропан, С3","ізо-бутан, і-С4","н-бутан, н-С4","нео-пентан, нео-С5","ізо-пентан, і-С5","н-пентан, н-С5","гексани та вищі, С6+","кисень, О2","азот, N2","діоксид вуглецю, CО2",null,"Теплота згоряння нижча",null,null,"Теплота згоряння вища",null,null,"Число Воббе вище"]
[null,null,null,null,null,null,null,null,null,null,null,null,null,null," ккал/м3"," МДж/м3","кВт⋅год/м3"," ккал/м3"," МДж/м3","кВт⋅год/м3"," ккал/м3"," МДж/м3","кВт⋅год/м3",null,null,null,null,null,null,null,"  "]
[1,94.996099999999998,2.7347000000000001,0.83109999999999995,0.1241,0.13089999999999999,6.9999999999999999E-4,2.69E-2,0.02,2.4299999999999999E-2,9.4999999999999998E-3,0.78839999999999999,0.31309999999999999,0.70799999999999996,{"$f":"P11*238.8459","v":8236.6963998600004},34.485399999999998,{"$f":"P11/3.6","v":9.5792777777777776},{"$f":"S11*238.8459","v":9126.3018389999997},38.21,{"$f":"S11/3.6","v":10.613888888888889},11910,49.86,13.85,-7.8,-4.9000000000000004,null,null,null,{"$f":"SUM(B11:M11)+$K$42+$N$42","v":99.999799999999993}]
[2,null,null,null,null,null,null,null,null,null,null,null,null,null,8236.6963998600004,34.485399999999998,9.5792777777777776,9126.3018389999997,38.21,10.613888888888889,null,null,null,null,null,null,null,null,0]
[3,null,null,null,null,null,null,null,null,null,null,null,null,null,8236.6963998600004,34.485399999999998,{"$f":"P13/3.6","v":9.5792777777777776},9126.3018389999997,38.21,{"$f":"S13/3.6","v":10.613888888888889},null,null,null,null,null,null,null,null,0,{"$f":"IF(AC13=100,\"ОК\",\" \")","v":" "}]
[4,null,null,null,null,null,null,null,null,null,null,null,null,null,null,null,null,null,null,null,null,null,null,null,null,null,null,null,0,{"$f":"IF(AC14=100,\"ОК\",\" \")","v":" "}]
[5,null,null,null,null,null,null,null,null,null,null,null,null,null,null,null,null,null,null,null,null,null,null,null,null,null,null,null,0," "]
[6,null,null,null,null,null,null,null,null,null,null,null,null,null,null,null,null,null,null,null,null,null,null,null,null,null,null,null,0," "]
[7,null,null,null,null,null,null,null,null,null,null,null,null,null,null,null,null,null,null,null,null,null,null,null,null,null,null,null,0," "]
[8,null,null,null,null,null,null,null,null,null,null,null,null,null,null,null,null,null,null,null,null,null,null,null,null,null,null,null,0," "]
[9,null,null,null,null,null,null,null,null,null,null,null,null,null,null,null,null,null,null,null,null,null,null,null,null,null,null,null,0," "]
[10,null,null,null,null,null,null,null,null,null,null,null,null,null,null,null,null,null,null,null,null,null,null,null,null,null,null,null,0," "]
[11,null,null,null,null,null,null,null,null,null,null,null,null,null,null,null,null,null,null,null,null,null,null,null,null,null,null,null,0," "]
[12,null,null,null,null,null,null,null,null,null,null,null,null,null,null,null,null,null,null,null,null,null,null,null,null,null,null,null,0," "]
[13,null,null,null,null,null,null,null,null,null,null,null,null,null,null,null,null,null,null,null,null,null,null,null,null,null,null,null,0," "]
[14,null,null,null,null,null,null,null,null,null,null,null,null,null,null,null,null,null,null,null,null,null,null,null,null,null,null,null,0," "]
[15,null,null,null,null,null,null,null,null,null,null,null,null,null,null,null,null,null,null,null,null,null,null,null,null,null,null,null,0," "]
[16,null,null,null,null,null,null,null,null,null,null,null,null,null,null,null,null,null,null,null,null,null,null,null,null,null,null,null,0," "]
[17,null,null,null,null,null,null,null,null,null,null,null,null,null,null,null,null,null,null,null,null,null,null,null,null,null,null,null,0," "]
[18,null,null,null,null,null,null,null,null,null,null,null,null,null,null,null,null,null,null,null,null,null,null,null,null,null,null,null,0," "]
[19,null,null,null,null,null,null,null,null,null,null,null,null,null,null,null,null,null,null,null,null,null,null,null,null,null,null,null,0," "]
[20,null,null,null,null,null,null,null,null,null,null,null,null,null,null,null,null,null,null,null,null,null,null,null,null,null,null,null,0,{"$f":"IF(AC30=100,\"ОК\",\" \")","v":" "}]
[21,null,null,null,null,null,null,null,null,null,null,null,null,null,null,null,null,null,null,null,null,null,null,null,null,null,null,null,0," "]
[20,null,null,null,null,null,null,null,null,null,null,null,null,null,null,null,null,null,null,null,null,null,null,null,null,null,null,null,0," "]
[23,null,null,null,null,null,null,null,null,null,null,null,null,null,null,null,null,null,null,null,null,null,null,null,null,null,null,null,0,{"$f":"IF(AC33=100,\"ОК\",\" \")","v":" "}]
[24,null,null,null,null,null,null,null,null,null,null,null,null,null,null,null,null,null,null,null,null,null,null,null,null,null,null,null,0," "]
[25,null,null,null,null,null,null,null,null,null,null,null,null,null,null,null,null,null,null,null,null,null,null,null,null,null,null,null,0," "]
[26,null,null,null,null,null,null,null,null,null,null,null,null,null,null,null,null,null,null,null,null,null,null,null,null,null,null,null,0," "]
[27,null,null,null,null,null,null,null,null,null,null,null,null,null,null,null,null,null,null,null,null,null,null,null,null,null,null,null,0," "]
[28]
[29,null,null,null,null,null,null,null,null,null,null,null,null,null,null,null,null,null,null,null,null,null,null,null,null,null,null,null,0," "]
[30,null,null,null,null,null,null,null,null,null,null,null,null,null,null,null,null,null,null,null,null,null,null,null,null,null,null,null,0]
[31,null,null,null,null,null,null,null,null,null,null,null,null,null,null,null,null,null,null,null,null,null,null,null,null,null,null,null,0," "]
["Рівень одоризації відповідає чинним нормативним документам",null,null,null,null,null,null,null,null,null,null,null,null,null,8236.6963998599986,34.485399999999998,9.5792777777777776,9126.3018389999997,38.21,10.613888888888889]
[null,null,null,null,null,null,null,"Середньозважене значення теплоти згоряння:"]
[]
[]
[null,"Головний інженер Тернопільського ЛВУМГ                                                                                                                Тарапата Я.І.                                                                                                            "]
[null,null,"Підрозділу підприємства, якому підпорядкована лабораторія",null,null,null,null,null,null,null,null,null,null,null,"прізвище",null,null,"підпис",null,null,null,"дата"]
[null,"Хімік                                                                                                                                                                                    Чорна Г.В.                                                                                                                                           "]
[null,null,"Лабораторія, де здійснювалось вимірювання газу",null,null,null,null,null,null,null,null,null,null,null,"прізвище",null,null,"підпис",null,null,null,"дата"]
[null,"Начальник служби метрології                                                                                                                                           Лукавий Р.М.                                                        "]
[null,null,"Підрозділу, відповідального за облік газу за маршрутом",null,null,null,null,null,null,null,null,null,null,null,"прізвище",null,null,"підпис",null,null,null,"дата"]
[null,"Точка відбору для визначення температури точки роси вологи і вуглеводнів :  ГРС Тернопіль"]

{"sheet":"додаток","index":1,"n_rows":21,"n_cols":6,"rows_kept":21,"cut":false,"hidden":false,"merged":[[11,0,11,1],[0,0,0,1],[3,2,3,4],[3,1,4,1],[3,0,4,0],[5,0,9,0]]}
[]
["Додаток до Паспорту фізико-хімічних показників природного газу № 215"]
[]
["Область","ГРС, прямий споживач","Cередньозважене значення вищої теплоти згоряння"]
[null,null," МДж/м³","ккал/м³","кВт*год./м³"]
["Івано-Франківська область","ГРС Рогатин ",38.210000000000008,9126.3018390000016,10.613888888888891]
[null,"ГРС Беньківці ",38.21,9126.3018389999997,10.613888888888889]
[null,"ГРС Лопушня (л.№1)",38.21,9126.3018389999997,10.613888888888889]
[null,"ГРП Княгиничі",38.21,9126.3018389999997,10.613888888888889]
[null,"ГРП Пуків ",38.21,9126.3018389999997,10.613888888888889]
["    Тернопільська область ","ГРС Лопушня (л.№2)",38.21,9126.3018389999997,10.613888888888889]
["Середньозважене значення вищої теплоти згоряння по маршруту № 215",null,38.21,9126.3018389999997,10.613888888888889]
[]
[]
[]
["Головний інженер                                                                                                     Тарапата Я.І                                                                                  "]
["Підрозділу підприємства, якому підпорядкована лабораторія",null,null,"прізвище","підпис","дата"]
["Хімік                                                                                                                            Чорна Г.В.                                                                                                       "]
["Лабораторія, де здійснювалось вимірювання газу",null,null,"прізвище","підпис","дата"]
["Начальник служби метрології                                                                                   Лукавий Р.М."]
["Підрозділу, відповідального за облік газу за маршрутом",null,null,"прізвище","підпис","дата"]

{"sheet":"variablesList","index":2,"n_rows":3,"n_cols":4,"rows_kept":3,"cut":false,"hidden":true,"merged":[]}
[3,"x:\\gaysin","10, 11, 24, 25, 127, 128, 132, 180, 207, 215","x:\\"]
[null,"x:\\Illinci"]
[null,"x:\\Talne"]